[Event "Mistrovství Čech mládeže 2023 - HD16"]
[Site "Harrachov, Czech Republic"]
[Date "2023.10.22"]
[Round "2.9"]
[White "Mikhno, Artem"]
[Black "Kučina, Ondřej"]
[Result "0-1"]
[TimeControl "90m + 30s"]
[WhiteElo "1781"]
[BlackElo "1592"]

1. d4 {[%clk 01:30:55]} {[%emt 00:00:04]} e6 {[%clk 01:30:42]} {[%emt
00:00:18]} 2. c4 {[%clk 01:30:20]} {[%emt 00:01:05]} f5 {[%clk 01:30:57]}
{[%emt 00:00:15]} 3. Nc3 {[%clk 01:30:16]} {[%emt 00:00:34]} Nf6 {[%clk
01:31:16]} {[%emt 00:00:11]} 4. Bf4 {[%clk 01:29:44]} {[%emt 00:01:01]} Bb4
{[%clk 01:29:43]} {[%emt 00:02:03]} 5. Qc2 {[%clk 01:27:08]} {[%emt 00:03:07]}
Ne4 {[%clk 01:24:39]} {[%emt 00:05:34]} 6. Nf3 {[%clk 01:26:41]} {[%emt
00:00:57]} c5 {[%clk 01:20:12]} {[%emt 00:04:57]} 7. d5 {[%clk 01:24:30]}
{[%emt 00:02:41]} Qa5 {[%clk 01:18:28]} {[%emt 00:02:13]} 8. Be5 {[%clk
01:20:11]} {[%emt 00:04:50]} O-O {[%clk 01:17:15]} {[%emt 00:01:42]} 9. Nd2
{[%clk 01:20:07]} {[%emt 00:00:33]} d6 {[%clk 01:15:44]} {[%emt 00:02:01]} 10.
Ndxe4 {[%clk 01:19:25]} {[%emt 00:01:12]} dxe5 {[%clk 01:11:47]} {[%emt
00:04:26]} 11. Nd6 {[%clk 01:17:03]} {[%emt 00:02:53]} Bxc3+ {[%clk 01:06:43]}
{[%emt 00:05:33]} 12. Qxc3 {[%clk 01:17:22]} {[%emt 00:00:12]} Qxc3+ {[%clk
01:06:43]} {[%emt 00:00:29]} 13. bxc3 {[%clk 01:17:48]} {[%emt 00:00:05]} exd5
{[%clk 01:06:45]} {[%emt 00:00:28]} 14. cxd5 {[%clk 01:18:09]} {[%emt
00:00:09]} a6 {[%clk 01:04:33]} {[%emt 00:02:42]} 15. a4 {[%clk 01:18:09]}
{[%emt 00:00:30]} Rd8 {[%clk 00:58:12]} {[%emt 00:06:50]} 16. Nxc8 {[%clk
01:18:32]} {[%emt 00:00:08]} Rxc8 {[%clk 00:58:31]} {[%emt 00:00:11]} 17. c4
{[%clk 01:18:45]} {[%emt 00:00:17]} Nd7 {[%clk 00:58:30]} {[%emt 00:00:30]} 18.
Rb1 {[%clk 01:18:50]} {[%emt 00:00:26]} b5 {[%clk 00:52:59]} {[%emt 00:06:01]}
19. e3 {[%clk 01:18:32]} {[%emt 00:00:48]} b4 {[%clk 00:48:45]} {[%emt
00:04:44]} 20. a5 {[%clk 01:17:36]} {[%emt 00:01:26]} e4 {[%clk 00:48:49]}
{[%emt 00:00:26]} 21. f3 {[%clk 01:17:06]} {[%emt 00:01:01]} exf3 {[%clk
00:48:15]} {[%emt 00:01:05]} 22. gxf3 {[%clk 01:17:30]} {[%emt 00:00:06]} Re8
{[%clk 00:47:36]} {[%emt 00:01:09]} 23. Kf2 {[%clk 01:17:52]} {[%emt 00:00:08]}
Kf7 {[%clk 00:47:46]} {[%emt 00:00:20]} 24. Bh3 {[%clk 01:17:36]} {[%emt
00:00:46]} Ne5 {[%clk 00:47:05]} {[%emt 00:01:11]} 25. Bxf5 {[%clk 01:16:13]}
{[%emt 00:01:53]} Nxc4 {[%clk 00:45:38]} {[%emt 00:01:57]} 26. Rbc1 {[%clk
01:16:11]} {[%emt 00:00:32]} Nxa5 {[%clk 00:44:50]} {[%emt 00:01:17]} 27. Rxc5
{[%clk 01:16:24]} {[%emt 00:00:18]} Nb7 {[%clk 00:40:21]} {[%emt 00:04:55]} 28.
Rc7+ {[%clk 01:15:18]} {[%emt 00:01:40]} Re7 {[%clk 00:37:37]} {[%emt
00:03:14]} 29. Rhc1 {[%clk 01:14:16]} {[%emt 00:01:33]} Rae8 {[%clk 00:30:38]}
{[%emt 00:07:28]} 30. Bd7 {[%clk 01:14:37]} {[%emt 00:00:09]} Rb8 {[%clk
00:28:51]} {[%emt 00:02:17]} 31. Bc8 {[%clk 01:13:54]} {[%emt 00:01:13]} b3
{[%clk 00:26:30]} {[%emt 00:02:51]} 32. Be6+ {[%clk 01:10:30]} {[%emt
00:03:54]} Kf8 {[%clk 00:20:49]} {[%emt 00:06:11]} 33. Rc8+ {[%emt 00:03:45]}
Rxc8 {[%emt 00:01:42]} 34. Rxc8+ {[%clk 01:04:45]} {[%emt 00:00:49]} Re8 {[%clk
00:21:02]} {[%emt 00:00:17]} 35. Rc7 {[%clk 00:53:43]} {[%emt 00:11:32]} Nd6
{[%clk 00:20:12]} {[%emt 00:01:20]} 36. Rc6 {[%clk 00:51:45]} {[%emt 00:02:28]}
Rxe6 {[%clk 00:17:50]} {[%emt 00:02:52]} 37. dxe6 {[%clk 00:51:47]} {[%emt
00:00:28]} b2 {[%clk 00:17:57]} {[%emt 00:00:24]} 38. Rb6 {[%clk 00:52:07]}
{[%emt 00:00:09]} Nb5 {[%clk 00:18:13]} {[%emt 00:00:15]} 0-1

[Event "Mistrovství Čech mládeže 2023 - HD16"]
[Site "Harrachov, Czech Republic"]
[Date "2023.10.22"]
[Round "2.10"]
[White "Večeř, Martin"]
[Black "Svoboda, Daniel"]
[Result "0-1"]
[TimeControl "90m + 30s"]
[WhiteElo "1569"]
[BlackElo "1766"]

1. Nf3 {[%clk 01:30:57]} {[%emt 00:00:02]} c5 {[%clk 01:30:42]} {[%emt
00:00:18]} 2. e4 {[%clk 01:31:17]} {[%emt 00:00:10]} d6 {[%clk 01:30:27]}
{[%emt 00:00:45]} 3. d4 {[%clk 01:31:20]} {[%emt 00:00:27]} cxd4 {[%clk
01:30:45]} {[%emt 00:00:12]} 4. Nxd4 {[%clk 01:31:42]} {[%emt 00:00:09]} Nf6
{[%clk 01:31:05]} {[%emt 00:00:10]} 5. Nc3 {[%clk 01:31:32]} {[%emt 00:00:39]}
a6 {[%clk 01:30:57]} {[%emt 00:00:38]} 6. f3 {[%clk 01:31:12]} {[%emt
00:00:51]} e5 {[%clk 01:30:05]} {[%emt 00:01:22]} 7. Nb3 {[%clk 01:31:12]}
{[%emt 00:00:31]} Be6 {[%clk 01:29:00]} {[%emt 00:01:35]} 8. Be3 {[%clk
01:26:29]} {[%emt 00:05:13]} h5 {[%clk 01:28:00]} {[%emt 00:01:30]} 9. Qd2
{[%clk 01:23:53]} {[%emt 00:03:06]} Nbd7 {[%clk 01:24:26]} {[%emt 00:04:04]} 10.
Be2 {[%clk 01:19:17]} {[%emt 00:05:06]} Rc8 {[%clk 01:18:49]} {[%emt 00:06:07]}
11. O-O-O {[%clk 01:11:21]} {[%emt 00:08:26]} b5 {[%clk 01:13:13]} {[%emt
00:06:06]} 12. h3 {[%clk 00:57:30]} {[%emt 00:14:21]} Nb6 {[%clk 00:44:25]}
{[%emt 00:29:18]} 13. g4 {[%clk 00:38:28]} {[%emt 00:19:32]} b4 {[%clk
00:36:18]} {[%emt 00:08:38]} 14. Nb1 {[%clk 00:38:37]} {[%emt 00:00:21]} Nc4
{[%clk 00:29:43]} {[%emt 00:07:05]} 15. Bxc4 {[%clk 00:35:46]} {[%emt
00:03:21]} Rxc4 {[%clk 00:28:03]} {[%emt 00:02:10]} 16. Qd3 {[%clk 00:33:20]}
{[%emt 00:02:55]} Be7 {[%clk 00:26:28]} {[%emt 00:02:05]} 17. N1d2 {[%clk
00:27:16]} {[%emt 00:06:35]} Rc6 {[%clk 00:24:04]} {[%emt 00:02:54]} 18. g5
{[%clk 00:25:51]} {[%emt 00:01:54]} Nd7 {[%clk 00:22:25]} {[%emt 00:02:09]} 19.
h4 {[%clk 00:25:20]} {[%emt 00:01:01]} Qc7 {[%clk 00:18:17]} {[%emt 00:04:38]}
20. f4 {[%clk 00:22:51]} {[%emt 00:02:58]} exf4 {[%clk 00:16:11]} {[%emt
00:02:37]} 21. Bxf4 {[%clk 00:22:51]} {[%emt 00:00:30]} Ne5 {[%clk 00:16:26]}
{[%emt 00:00:15]} 22. Bxe5 {[%clk 00:22:50]} {[%emt 00:00:31]} dxe5 {[%clk
00:16:34]} {[%emt 00:00:22]} 23. Kb1 {[%clk 00:20:46]} {[%emt 00:02:35]} O-O
{[%clk 00:14:58]} {[%emt 00:02:05]} 24. Rc1 {[%clk 00:20:11]} {[%emt 00:01:06]}
Rd8 {[%clk 00:11:44]} {[%emt 00:03:43]} 25. Qf3 {[%clk 00:17:40]} {[%emt
00:03:01]} Bg4 {[%clk 00:10:43]} {[%emt 00:01:31]} 26. Qe3 {[%clk 00:18:01]}
{[%emt 00:00:08]} a5 {[%clk 00:09:33]} {[%emt 00:01:40]} 27. c3 {[%clk
00:16:50]} {[%emt 00:01:41]} a4 {[%clk 00:06:57]} {[%emt 00:03:07]} 28. Na1
{[%clk 00:17:07]} {[%emt 00:00:13]} Bc5 {[%clk 00:04:55]} {[%emt 00:02:31]} 29.
Qe1 {[%clk 00:16:55]} {[%emt 00:00:42]} bxc3 {[%clk 00:05:03]} {[%emt
00:00:23]} 30. bxc3 {[%clk 00:15:33]} {[%emt 00:01:52]} Ba3 {[%clk 00:04:22]}
{[%emt 00:01:10]} 0-1

[Event "Mistrovství Čech mládeže 2023 - HD16"]
[Site "Harrachov, Czech Republic"]
[Date "2023.10.22"]
[Round "2.11"]
[White "Tegda, Vojtěch"]
[Black "Ocelák, David"]
[Result "0-1"]
[TimeControl "90m + 30s"]
[WhiteElo "1731"]
[BlackElo "1580"]

1. e4 {[%clk 01:30:57]} {[%emt 00:00:01]} c6 {[%clk 01:30:34]} {[%emt
00:00:26]} 2. d4 {[%clk 01:31:00]} {[%emt 00:00:28]} d5 {[%clk 01:30:54]}
{[%emt 00:00:10]} 3. f3 {[%clk 01:30:22]} {[%emt 00:01:09]} Qb6 {[%clk
01:29:16]} {[%emt 00:02:08]} 4. Nc3 {[%clk 01:28:32]} {[%emt 00:02:19]} g6
{[%clk 01:28:46]} {[%emt 00:01:01]} 5. exd5 {[%clk 01:08:23]} {[%emt 00:20:39]}
Bg7 {[%clk 01:28:13]} {[%emt 00:01:03]} 6. Nge2 {[%clk 01:08:01]} {[%emt
00:00:52]} Nf6 {[%clk 01:27:11]} {[%emt 00:01:31]} 7. dxc6 {[%clk 01:02:49]}
{[%emt 00:05:42]} Nxc6 {[%clk 01:23:48]} {[%emt 00:03:53]} 8. d5 {[%clk
01:00:12]} {[%emt 00:03:07]} Nb4 {[%clk 01:21:06]} {[%emt 00:03:11]} 9. a3
{[%clk 00:58:44]} {[%emt 00:01:58]} Qa5 {[%clk 01:17:27]} {[%emt 00:04:09]} 10.
d6 {[%clk 00:54:46]} {[%emt 00:04:28]} O-O {[%clk 00:54:59]} {[%emt 00:22:58]}
11. dxe7 {[%clk 00:49:23]} {[%emt 00:05:53]} Re8 {[%clk 00:54:21]} {[%emt
00:01:07]} 12. Qd6 {[%clk 00:39:16]} {[%emt 00:10:37]} Nxc2+ {[%clk 00:53:50]}
{[%emt 00:01:02]} 13. Kd1 {[%clk 00:36:19]} {[%emt 00:03:27]} Nxa1 {[%clk
00:51:53]} {[%emt 00:02:27]} 14. Be3 {[%clk 00:35:50]} {[%emt 00:00:58]} Nb3
{[%clk 00:48:29]} {[%emt 00:03:54]} 15. Kc2 {[%clk 00:35:52]} {[%emt 00:00:28]}
Qf5+ {[%clk 00:46:44]} {[%emt 00:02:15]} 16. Kxb3 {[%clk 00:35:10]} {[%emt
00:01:11]} Be6+ {[%clk 00:47:01]} {[%emt 00:00:14]} 0-1

[Event "Mistrovství Čech mládeže 2023 - HD16"]
[Site "Harrachov, Czech Republic"]
[Date "2023.10.22"]
[Round "2.12"]
[White "Stein, Michael"]
[Black "Markina, Sofiia"]
[Result "1-0"]
[TimeControl "90m + 30s"]
[WhiteElo "1717"]
[BlackElo "1564"]

1. e4 {[%clk 01:30:58]} {[%emt 00:00:02]} c5 {[%clk 01:30:54]} {[%emt
00:00:06]} 2. Nf3 {[%clk 01:31:23]} {[%emt 00:00:04]} d6 {[%clk 01:31:20]}
{[%emt 00:00:05]} 3. d4 {[%clk 01:31:48]} {[%emt 00:00:05]} cxd4 {[%clk
01:31:46]} {[%emt 00:00:04]} 4. Nxd4 {[%clk 01:32:13]} {[%emt 00:00:04]} Nf6
{[%clk 01:32:11]} {[%emt 00:00:05]} 5. Nc3 {[%clk 01:32:38]} {[%emt 00:00:06]}
a6 {[%clk 01:32:37]} {[%emt 00:00:04]} 6. h4 {[%clk 01:32:51]} {[%emt
00:00:16]} e5 {[%clk 01:31:59]} {[%emt 00:01:08]} 7. Nb3 {[%clk 01:33:08]}
{[%emt 00:00:14]} Be6 {[%clk 01:32:07]} {[%emt 00:00:22]} 8. f4 {[%clk
01:32:57]} {[%emt 00:00:41]} Nbd7 {[%clk 01:30:37]} {[%emt 00:02:00]} 9. f5
{[%clk 01:31:38]} {[%emt 00:01:48]} Bxb3 {[%clk 01:31:00]} {[%emt 00:00:07]} 10.
axb3 {[%clk 01:32:02]} {[%emt 00:00:07]} b5 {[%clk 01:25:56]} {[%emt 00:05:34]}
11. g4 {[%clk 01:20:00]} {[%emt 00:12:32]} Nc5 {[%clk 01:22:00]} {[%emt
00:04:26]} 12. Bg2 {[%clk 01:11:16]} {[%emt 00:09:13]} b4 {[%clk 01:13:17]}
{[%emt 00:09:14]} 13. Nd5 {[%clk 01:10:38]} {[%emt 00:01:08]} Nfxe4 {[%clk
01:07:04]} {[%emt 00:06:42]} 14. Bxe4 {[%clk 01:08:19]} {[%emt 00:02:49]} Nxe4
{[%clk 01:04:20]} {[%emt 00:03:14]} 15. Qf3 {[%clk 01:07:57]} {[%emt 00:00:51]}
Nc5 {[%clk 01:00:53]} {[%emt 00:03:58]} 16. Nc7+ {[%clk 01:05:17]} {[%emt
00:03:09]} Qxc7 {[%clk 01:01:15]} {[%emt 00:00:09]} 17. Qxa8+ {[%clk 01:05:39]}
{[%emt 00:00:08]} Kd7 {[%clk 01:01:29]} {[%emt 00:00:16]} 18. Be3 {[%clk
01:02:28]} {[%emt 00:03:40]} g6 {[%clk 00:57:15]} {[%emt 00:04:45]} 19. Bxc5
{[%clk 00:59:54]} {[%emt 00:03:05]} Qxc5 {[%clk 00:57:15]} {[%emt 00:00:30]} 20.
Qb7+ {[%clk 01:00:08]} {[%emt 00:00:16]} Ke8 {[%clk 00:56:09]} {[%emt
00:01:36]} 21. O-O-O {[%clk 00:59:36]} {[%emt 00:01:02]} Be7 {[%clk 00:54:49]}
{[%emt 00:01:50]} 22. Qb8+ {[%clk 00:57:12]} {[%emt 00:02:49]} Bd8 {[%clk
00:53:48]} {[%emt 00:01:34]} 23. Rxd6 {[%clk 00:56:15]} {[%emt 00:01:27]} Qc7
{[%clk 00:51:54]} {[%emt 00:02:24]} 24. Rxd8+ {[%clk 00:55:49]} {[%emt
00:00:56]} Qxd8 {[%clk 00:52:17]} {[%emt 00:00:07]} 25. Qxe5+ {[%clk 00:56:11]}
{[%emt 00:00:07]} 1-0

[Event "Mistrovství Čech mládeže 2023 - HD16"]
[Site "Harrachov, Czech Republic"]
[Date "2023.10.22"]
[Round "2.13"]
[White "Novotný, Dominik"]
[Black "Šlosar, Jan"]
[Result "1-0"]
[TimeControl "90m + 30s"]
[WhiteElo "1929"]
[BlackElo "1346"]

1. e4 {[%clk 01:30:57]} {[%emt 00:00:01]} c5 {[%clk 01:30:50]} {[%emt
00:00:11]} 2. b3 {[%clk 01:31:14]} {[%emt 00:00:13]} d6 {[%clk 01:31:00]}
{[%emt 00:00:19]} 3. Bb2 {[%clk 01:31:36]} {[%emt 00:00:08]} Nc6 {[%clk
01:30:57]} {[%emt 00:00:34]} 4. Bb5 {[%clk 01:31:18]} {[%emt 00:00:48]} e5
{[%clk 01:30:29]} {[%emt 00:00:58]} 5. d3 {[%clk 01:29:26]} {[%emt 00:02:22]}
a6 {[%clk 01:28:05]} {[%emt 00:02:53]} 6. Bxc6+ {[%clk 01:29:41]} {[%emt
00:00:16]} bxc6 {[%clk 01:28:05]} {[%emt 00:00:31]} 7. Ne2 {[%clk 01:24:31]}
{[%emt 00:05:39]} f5 {[%clk 01:26:55]} {[%emt 00:01:40]} 8. f4 {[%clk
01:03:41]} {[%emt 00:21:20]} g6 {[%clk 01:17:41]} {[%emt 00:09:44]} 9. fxe5
{[%clk 00:51:05]} {[%emt 00:13:05]} Bg7 {[%clk 01:13:21]} {[%emt 00:04:50]} 10.
exf5 {[%clk 00:32:31]} {[%emt 00:19:04]} Bxf5 {[%clk 01:09:19]} {[%emt
00:04:33]} 11. Ng3 {[%clk 00:31:38]} {[%emt 00:01:22]} Nh6 {[%clk 01:08:39]}
{[%emt 00:01:11]} 12. Nd2 {[%clk 00:20:41]} {[%emt 00:11:26]} Qe7 {[%clk
01:07:20]} {[%emt 00:01:48]} 13. Nc4 {[%clk 00:19:54]} {[%emt 00:01:18]} O-O
{[%clk 01:05:43]} {[%emt 00:02:08]} 14. O-O {[%clk 00:18:40]} {[%emt 00:01:43]}
d5 {[%clk 01:05:09]} {[%emt 00:01:04]} 15. Ne3 {[%clk 00:16:08]} {[%emt
00:03:02]} Bd7 {[%clk 01:01:59]} {[%emt 00:03:40]} 16. Qd2 {[%clk 00:14:35]}
{[%emt 00:02:02]} Nf7 {[%clk 00:59:57]} {[%emt 00:02:33]} 17. Rae1 {[%clk
00:12:30]} {[%emt 00:02:35]} Nxe5 {[%clk 00:58:54]} {[%emt 00:01:32]} 18. c4
{[%clk 00:11:55]} {[%emt 00:01:05]} d4 {[%clk 00:56:11]} {[%emt 00:03:13]} 19.
Nd1 {[%clk 00:11:50]} {[%emt 00:00:35]} Rxf1+ {[%clk 00:55:12]} {[%emt
00:01:29]} 20. Nxf1 {[%clk 00:08:45]} {[%emt 00:03:34]} Re8 {[%clk 00:52:01]}
{[%emt 00:03:41]} 21. Kh1 {[%clk 00:07:56]} {[%emt 00:01:19]} Qh4 {[%clk
00:50:58]} {[%emt 00:01:33]} 22. Re4 {[%clk 00:04:47]} {[%emt 00:03:39]} Ng4
{[%clk 00:46:03]} {[%emt 00:05:25]} 23. Rxe8+ {[%clk 00:03:37]} {[%emt
00:01:40]} Bxe8 {[%clk 00:46:23]} {[%emt 00:00:10]} 24. Qe2 {[%clk 00:03:51]}
{[%emt 00:00:16]} Bd7 {[%clk 00:44:33]} {[%emt 00:02:20]} 25. Ba3 {[%clk
00:03:35]} {[%emt 00:00:45]} Ne5 {[%clk 00:43:12]} {[%emt 00:01:51]} 26. Nf2
{[%clk 00:02:33]} {[%emt 00:01:32]} Qe7 {[%clk 00:41:54]} {[%emt 00:01:49]} 27.
Ng3 {[%clk 00:02:13]} {[%emt 00:00:50]} h5 {[%clk 00:40:30]} {[%emt 00:01:54]}
28. Nge4 {[%clk 00:02:07]} {[%emt 00:00:36]} Bg4 {[%clk 00:32:53]} {[%emt
00:08:06]} 29. Nxg4 {[%clk 00:01:47]} {[%emt 00:00:51]} Nxg4 {[%clk 00:32:39]}
{[%emt 00:00:44]} 30. Bxc5 {[%clk 00:01:53]} {[%emt 00:00:24]} Qe5 {[%clk
00:32:05]} {[%emt 00:01:04]} 31. Bd6 {[%clk 00:01:33]} {[%emt 00:00:50]} Qa5
{[%clk 00:30:22]} {[%emt 00:02:13]} 32. h3 {[%clk 00:01:11]} {[%emt 00:00:52]}
Ne3 {[%clk 00:30:37]} {[%emt 00:00:15]} 33. Bf4 {[%clk 00:01:16]} {[%emt
00:00:25]} Nf5 {[%clk 00:30:28]} {[%emt 00:00:39]} 34. g4 {[%clk 00:01:20]}
{[%emt 00:00:26]} hxg4 {[%clk 00:26:35]} {[%emt 00:04:23]} 35. hxg4 {[%clk
00:01:46]} {[%emt 00:00:04]} Nh6 {[%clk 00:26:05]} {[%emt 00:00:58]} 36. Ng5
{[%clk 00:01:26]} {[%emt 00:00:51]} 1-0

[Event "Mistrovství Čech mládeže 2023 - HD16"]
[Site "Harrachov, Czech Republic"]
[Date "2023.10.22"]
[Round "2.14"]
[White "Dominiková, Denisa"]
[Black "Tesař, Jakub"]
[Result "0-1"]
[TimeControl "90m + 30s"]
[WhiteElo "1445"]
[BlackElo "1893"]

1. e4 {[%clk 01:30:54]} {[%emt 00:00:04]} c6 {[%clk 01:30:52]} {[%emt
00:00:08]} 2. Nc3 {[%clk 01:30:57]} {[%emt 00:00:27]} d5 {[%clk 01:31:11]}
{[%emt 00:00:11]} 3. Nf3 {[%clk 01:31:17]} {[%emt 00:00:10]} Bg4 {[%clk
01:31:20]} {[%emt 00:00:21]} 4. h3 {[%clk 01:31:25]} {[%emt 00:00:22]} Bxf3
{[%clk 01:31:27]} {[%emt 00:00:24]} 5. Qxf3 {[%clk 01:31:33]} {[%emt 00:00:22]}
Nf6 {[%clk 01:29:56]} {[%emt 00:02:01]} 6. d3 {[%clk 01:29:59]} {[%emt
00:02:04]} e6 {[%clk 01:21:51]} {[%emt 00:08:35]} 7. Bd2 {[%clk 01:24:55]}
{[%emt 00:05:33]} Nbd7 {[%clk 01:21:34]} {[%emt 00:00:47]} 8. g4 {[%clk
01:22:16]} {[%emt 00:03:09]} a5 {[%clk 01:10:02]} {[%emt 00:12:03]} 9. Bg2
{[%clk 01:08:15]} {[%emt 00:14:30]} Bd6 {[%clk 01:03:59]} {[%emt 00:06:27]} 10.
g5 {[%clk 00:59:52]} {[%emt 00:08:58]} Ng8 {[%clk 01:04:12]} {[%emt 00:00:17]}
11. exd5 {[%clk 00:57:19]} {[%emt 00:03:03]} exd5 {[%clk 01:02:27]} {[%emt
00:02:16]} 12. O-O-O {[%clk 00:52:08]} {[%emt 00:05:41]} Ne7 {[%clk 01:01:16]}
{[%emt 00:01:42]} 13. h4 {[%clk 00:47:26]} {[%emt 00:05:11]} b5 {[%clk
00:57:32]} {[%emt 00:04:14]} 14. Rde1 {[%clk 00:41:05]} {[%emt 00:06:51]} Kf8
{[%clk 00:33:50]} {[%emt 00:24:05]} 15. d4 {[%clk 00:33:17]} {[%emt 00:08:26]}
a4 {[%clk 00:30:17]} {[%emt 00:04:03]} 16. h5 {[%clk 00:30:33]} {[%emt
00:03:13]} b4 {[%clk 00:30:19]} {[%emt 00:00:29]} 17. g6 {[%clk 00:27:54]}
{[%emt 00:03:09]} hxg6 {[%clk 00:29:22]} {[%emt 00:01:28]} 18. hxg6 {[%clk
00:24:46]} {[%emt 00:03:37]} Nxg6 {[%clk 00:29:43]} {[%emt 00:00:08]} 19. Rxh8+
{[%clk 00:17:25]} {[%emt 00:07:51]} Nxh8 {[%clk 00:30:12]} {[%emt 00:00:01]} 20.
Nxd5 {[%clk 00:13:14]} {[%emt 00:04:42]} cxd5 {[%clk 00:30:02]} {[%emt
00:00:39]} 21. Qxd5 {[%clk 00:13:27]} {[%emt 00:00:16]} Ra6 {[%clk 00:29:34]}
{[%emt 00:00:59]} 22. Qh5 {[%clk 00:10:38]} {[%emt 00:03:17]} Ng6 {[%clk
00:29:20]} {[%emt 00:00:46]} 23. Bg5 {[%clk 00:05:00]} {[%emt 00:06:08]} Qb8
{[%clk 00:21:45]} {[%emt 00:07:46]} 24. Bf1 {[%clk 00:03:36]} {[%emt 00:02:13]}
Rb6 {[%clk 00:20:08]} {[%emt 00:02:06]} 25. Bd3 {[%clk 00:02:51]} {[%emt
00:01:16]} Bf4+ {[%clk 00:13:29]} {[%emt 00:07:09]} 26. Kd1 {[%clk 00:02:32]}
{[%emt 00:00:49]} Nf6 {[%clk 00:09:30]} {[%emt 00:04:29]} 27. Bxf4 {[%clk
00:01:31]} {[%emt 00:01:31]} Nxh5 {[%clk 00:07:05]} {[%emt 00:02:55]} 28. Bxb8
{[%clk 00:01:53]} {[%emt 00:00:09]} Rxb8 {[%clk 00:07:25]} {[%emt 00:00:10]} 29.
Rg1 {[%clk 00:00:58]} {[%emt 00:01:24]} Nhf4 {[%clk 00:06:21]} {[%emt
00:01:34]} 30. Be4 {[%clk 00:01:00]} {[%emt 00:00:28]} a3 {[%clk 00:04:44]}
{[%emt 00:02:08]} 31. b3 {[%clk 00:00:44]} {[%emt 00:00:46]} Rd8 {[%clk
00:04:57]} {[%emt 00:00:17]} 32. Bxg6 {[%clk 00:00:47]} {[%emt 00:00:26]} Nxg6
{[%clk 00:04:36]} {[%emt 00:00:51]} 33. Rg4 {[%clk 00:00:56]} {[%emt 00:00:13]}
Ne7 {[%clk 00:04:08]} {[%emt 00:01:07]} 34. Kd2 {[%clk 00:01:06]} {[%emt
00:00:20]} Nd5 {[%clk 00:04:31]} {[%emt 00:00:07]} 35. Kd3 {[%clk 00:01:11]}
{[%emt 00:00:24]} Nc3 {[%clk 00:03:23]} {[%emt 00:01:39]} 36. Rg1 {[%clk
00:00:42]} {[%emt 00:00:59]} Nxa2 {[%clk 00:03:33]} {[%emt 00:00:20]} 37. Ra1
{[%clk 00:00:34]} {[%emt 00:00:37]} Nc3 {[%clk 00:03:53]} {[%emt 00:00:10]} 38.
Kc4 {[%clk 00:00:47]} {[%emt 00:00:17]} Rb8 {[%clk 00:03:35]} {[%emt 00:00:48]}
39. f3 {[%clk 00:00:44]} {[%emt 00:00:33]} Ke7 {[%clk 00:03:34]} {[%emt
00:00:31]} 40. d5 {[%clk 00:00:35]} {[%emt 00:00:39]} Kd6 {[%clk 00:03:04]}
{[%emt 00:01:01]} 41. f4 {[%clk 00:00:36]} {[%emt 00:00:28]} Rb7 {[%clk
00:03:05]} {[%emt 00:00:29]} 42. f5 {[%clk 00:00:37]} {[%emt 00:00:29]} Ke5
{[%clk 00:02:33]} {[%emt 00:01:01]} 43. Re1+ {[%clk 00:00:42]} {[%emt
00:00:26]} Kxf5 {[%clk 00:01:18]} {[%emt 00:01:45]} 44. Kc5 {[%clk 00:00:34]}
{[%emt 00:00:37]} Rb5+ {[%clk 00:01:26]} {[%emt 00:00:22]} 45. Kc4 {[%clk
00:00:35]} {[%emt 00:00:28]} Rb7 {[%clk 00:00:40]} {[%emt 00:01:18]} 46. Kc5
{[%clk 00:00:56]} {[%emt 00:00:08]} a2 {[%clk 00:00:57]} {[%emt 00:00:14]} 47.
Ra1 {[%clk 00:01:16]} {[%emt 00:00:09]} Rb5+ {[%clk 00:01:12]} {[%emt
00:00:15]} 48. Kc4 {[%clk 00:01:36]} {[%emt 00:00:09]} Ke5 {[%clk 00:01:20]}
{[%emt 00:00:23]} 49. Re1+ {[%clk 00:01:24]} {[%emt 00:00:41]} Kd6 {[%clk
00:01:40]} {[%emt 00:00:11]} 50. Ra1 {[%clk 00:01:21]} {[%emt 00:00:33]} g5
{[%clk 00:01:54]} {[%emt 00:00:16]} 51. Kd4 {[%clk 00:00:54]} {[%emt 00:00:54]}
f5 {[%clk 00:01:45]} {[%emt 00:00:42]} 52. Ke3 {[%clk 00:00:50]} {[%emt
00:00:32]} Rxd5 {[%clk 00:02:08]} {[%emt 00:00:10]} 53. Kf3 {[%clk 00:00:42]}
{[%emt 00:00:37]} Rd1 {[%clk 00:02:27]} {[%emt 00:00:11]} 54. Ke3 {[%clk
00:00:31]} {[%emt 00:00:42]} Rxa1 {[%clk 00:02:44]} {[%emt 00:00:12]} 55. Kd3
{[%clk 00:00:50]} {[%emt 00:00:08]} Kd5 {[%clk 00:02:51]} {[%emt 00:00:27]} 0-1